[Event "Early-Titled-Tuesday-Blitz-September-26-2023"]
[Site "Chess.com"]
[Date "2023.09.26"]
[Round "1"]
[White "lrestevez"]
[Black "DanielTitichoca"]
[Result "0-1"]
[WhiteElo "2202"]
[BlackElo "2572"]
[TimeControl "180+1"]
[EndTime "8:05:44 PDT"]
[Termination "DanielTitichoca won on time"]

1. e4 {[%clk 0:02:10.2]} 1... g6 {[%clk 0:03:00.9]} 2. d4 {[%clk 0:02:09.3]}
2... Bg7 {[%clk 0:03:01.2]} 3. Nf3 {[%clk 0:02:08.3]} 3... d6 {[%clk 0:03:01.7]}
4. Bc4 {[%clk 0:02:08.1]} 4... e6 {[%clk 0:03:00.8]} 5. c3 {[%clk 0:02:08.3]}
5... a6 {[%clk 0:03:01.4]} 6. Qe2 {[%clk 0:02:08.7]} 6... Ne7 {[%clk 0:03:01.2]}
7. O-O {[%clk 0:02:09.3]} 7... O-O {[%clk 0:03:01.7]} 8. Bb3 {[%clk 0:02:09.8]}
8... b5 {[%clk 0:03:00.6]} 9. Nbd2 {[%clk 0:02:10]} 9... Bb7 {[%clk 0:03:00.8]}
10. Re1 {[%clk 0:02:10.5]} 10... Nd7 {[%clk 0:03:00.6]} 11. Nf1 {[%clk 0:02:11]}
11... c5 {[%clk 0:03:01.2]} 12. Ng3 {[%clk 0:02:11.3]} 12... Rc8 {[%clk
0:02:58.8]} 13. Be3 {[%clk 0:02:09.3]} 13... Nf6 {[%clk 0:02:52]} 14. Rad1
{[%clk 0:02:03.2]} 14... cxd4 {[%clk 0:02:47.1]} 15. Bxd4 {[%clk 0:01:54.2]}
15... Nc6 {[%clk 0:02:47.1]} 16. Be3 {[%clk 0:01:50.8]} 16... Qc7 {[%clk
0:02:42.6]} 17. Bf4 {[%clk 0:01:50.3]} 17... Ne5 {[%clk 0:02:40.3]} 18. Nxe5
{[%clk 0:01:46.1]} 18... dxe5 {[%clk 0:02:39]} 19. Bg5 {[%clk 0:01:46.3]} 19...
h6 {[%clk 0:02:35.4]} 20. Bc1 {[%clk 0:01:46.3]} 20... Nd7 {[%clk 0:02:29.9]}
21. f3 {[%clk 0:01:43.6]} 21... Nc5 {[%clk 0:02:29.6]} 22. Bc2 {[%clk
0:01:43.7]} 22... f5 {[%clk 0:02:25.6]} 23. Kh1 {[%clk 0:01:41.1]} 23... Rcd8
{[%clk 0:02:21]} 24. a3 {[%clk 0:01:09]} 24... Qe7 {[%clk 0:02:18.6]} 25. Bb1
{[%clk 0:01:06.1]} 25... h5 {[%clk 0:02:14.8]} 26. Ba2 {[%clk 0:01:05.8]} 26...
h4 {[%clk 0:02:14.2]} 27. Nf1 {[%clk 0:01:04.2]} 27... fxe4 {[%clk 0:02:14.3]}
28. fxe4 {[%clk 0:01:01.8]} 28... Nxe4 {[%clk 0:02:14]} 29. Be3 {[%clk
0:00:56.2]} 29... Qf6 {[%clk 0:02:05.1]} 30. Nd2 {[%clk 0:00:51.8]} 30... h3
{[%clk 0:01:56.6]} 31. Kg1 {[%clk 0:00:16.4]} 31... Nxd2 {[%clk 0:01:48.8]} 32.
Rxd2 {[%clk 0:00:14.8]} 32... hxg2 {[%clk 0:01:48.9]} 33. Rxd8 {[%clk
0:00:10.8]} 33... Rxd8 {[%clk 0:01:49.4]} 34. Bb6 {[%clk 0:00:09.1]} 34... Rf8
{[%clk 0:01:48.7]} 35. Be3 {[%clk 0:00:08.8]} 35... Kh7 {[%clk 0:01:46.6]} 36.
h3 {[%clk 0:00:07.9]} 36... Qh4 {[%clk 0:01:46.6]} 37. Bf2 {[%clk 0:00:07.8]}
37... Qxh3 {[%clk 0:01:46.6]} 0-1

[Event "Early-Titled-Tuesday-Blitz-September-26-2023"]
[Site "Chess.com"]
[Date "2023.09.26"]
[Round "1"]
[White "Mariia89"]
[Black "Wizard_97"]
[Result "0-1"]
[WhiteElo "2078"]
[BlackElo "2541"]
[TimeControl "180+1"]
[EndTime "8:05:45 PDT"]
[Termination "Wizard_97 won on time"]

1. d4 {[%clk 0:02:54.7]} 1... Nf6 {[%clk 0:02:59.4]} 2. Nf3 {[%clk 0:02:54.6]}
2... e6 {[%clk 0:02:58.1]} 3. Bg5 {[%clk 0:02:54.8]} 3... h6 {[%clk 0:02:55]} 4.
Bh4 {[%clk 0:02:53.7]} 4... d6 {[%clk 0:02:51.7]} 5. Nbd2 {[%clk 0:02:53.1]}
5... g5 {[%clk 0:02:48.4]} 6. Bg3 {[%clk 0:02:52.8]} 6... Nh5 {[%clk 0:02:48.5]}
7. e4 {[%clk 0:02:35.9]} 7... Bg7 {[%clk 0:02:47.5]} 8. Bd3 {[%clk 0:02:28.7]}
8... Qe7 {[%clk 0:02:46.7]} 9. c3 {[%clk 0:02:25.6]} 9... O-O {[%clk 0:02:43]}
10. Qe2 {[%clk 0:02:16.5]} 10... Nd7 {[%clk 0:02:42.8]} 11. O-O-O {[%clk
0:02:09]} 11... a6 {[%clk 0:02:40.8]} 12. Ne1 {[%clk 0:01:56.7]} 12... Nxg3
{[%clk 0:02:39.3]} 13. hxg3 {[%clk 0:01:54.3]} 13... b5 {[%clk 0:02:39.4]} 14.
f4 {[%clk 0:01:54.4]} 14... c5 {[%clk 0:02:38.8]} 15. e5 {[%clk 0:01:53.7]}
15... cxd4 {[%clk 0:02:34.5]} 16. Qe4 {[%clk 0:01:52.6]} 16... f5 {[%clk
0:02:32.6]} 17. Qxa8 {[%clk 0:01:47.2]} 17... dxc3 {[%clk 0:02:28.6]} 18. bxc3
{[%clk 0:01:47.1]} 18... dxe5 {[%clk 0:02:28.8]} 19. Nb1 {[%clk 0:01:32.7]}
19... e4 {[%clk 0:02:19.6]} 20. Bc2 {[%clk 0:01:32.3]} 20... Qc5 {[%clk
0:02:19.2]} 21. fxg5 {[%clk 0:01:04.7]} 21... Nb6 {[%clk 0:02:17.3]} 22. Qa7
{[%clk 0:01:02.2]} 22... Rf7 {[%clk 0:02:11.6]} 23. Qb8 {[%clk 0:01:01.3]} 23...
Be5 {[%clk 0:02:11.3]} 24. Rd8+ {[%clk 0:00:58]} 24... Kg7 {[%clk 0:02:11]} 25.
gxh6+ {[%clk 0:00:57.1]} 25... Kh7 {[%clk 0:02:11.1]} 26. Rxc8 {[%clk
0:00:38.3]} 26... Nxc8 {[%clk 0:01:57.5]} 27. Qa8 {[%clk 0:00:38.5]} 27... Ra7
{[%clk 0:01:57.6]} 28. Nd3 {[%clk 0:00:21.7]} 28... Qe3+ {[%clk 0:01:53.9]} 29.
Kb2 {[%clk 0:00:19.1]} 29... Rxa8 {[%clk 0:01:54]} 30. Nxe5 {[%clk 0:00:19.2]}
30... Nd6 {[%clk 0:01:50.3]} 31. Na3 {[%clk 0:00:11.4]} 31... Rc8 {[%clk
0:01:49.3]} 0-1

[Event "Early-Titled-Tuesday-Blitz-September-26-2023"]
[Site "Chess.com"]
[Date "2023.09.26"]
[Round "1"]
[White "Shuvalov"]
[Black "A-Fier"]
[Result "0-1"]
[WhiteElo "2474"]
[BlackElo "2810"]
[TimeControl "180+1"]
[EndTime "8:05:49 PDT"]
[Termination "A-Fier won by resignation"]

1. d4 {[%clk 0:03:00.3]} 1... Nf6 {[%clk 0:02:59.6]} 2. c4 {[%clk 0:03:00.1]}
2... c5 {[%clk 0:03:00.2]} 3. Nf3 {[%clk 0:02:59.5]} 3... cxd4 {[%clk
0:02:59.8]} 4. Nxd4 {[%clk 0:03:00.4]} 4... g6 {[%clk 0:02:59.1]} 5. Nc3 {[%clk
0:03:00.5]} 5... Bg7 {[%clk 0:02:59.3]} 6. g3 {[%clk 0:02:59.6]} 6... O-O {[%clk
0:02:59.7]} 7. Bg2 {[%clk 0:03:00]} 7... Nc6 {[%clk 0:03:00.3]} 8. O-O {[%clk
0:02:59.1]} 8... d6 {[%clk 0:03:00.8]} 9. Nc2 {[%clk 0:02:56.7]} 9... Qa5 {[%clk
0:02:58.1]} 10. h3 {[%clk 0:02:41.4]} 10... Qh5 {[%clk 0:02:56.9]} 11. g4 {[%clk
0:02:41.2]} 11... Bxg4 {[%clk 0:02:56.9]} 12. hxg4 {[%clk 0:02:42.1]} 12... Nxg4
{[%clk 0:02:57.3]} 13. Bf4 {[%clk 0:02:27.9]} 13... Be5 {[%clk 0:02:57.1]} 14.
Qd2 {[%clk 0:02:27.9]} 14... g5 {[%clk 0:02:56.4]} 15. Bxe5 {[%clk 0:02:23.1]}
15... Ncxe5 {[%clk 0:02:57.3]} 16. Rfd1 {[%clk 0:02:17]} 16... Qh2+ {[%clk
0:02:54]} 17. Kf1 {[%clk 0:02:16.6]} 17... h6 {[%clk 0:02:53.5]} 18. Ne3 {[%clk
0:02:10]} 18... f5 {[%clk 0:02:52.8]} 19. Ncd5 {[%clk 0:01:48.8]} 19... Rf7
{[%clk 0:02:39]} 20. Rac1 {[%clk 0:01:35.1]} 20... e6 {[%clk 0:02:24.5]} 21. Nb4
{[%clk 0:01:29.3]} 21... Rd8 {[%clk 0:02:12.3]} 22. Nd3 {[%clk 0:01:26.6]} 22...
Ng6 {[%clk 0:02:11.4]} 23. Nxg4 {[%clk 0:01:15.2]} 23... fxg4 {[%clk 0:02:11.4]}
24. Qe3 {[%clk 0:01:15.8]} 24... Nh4 {[%clk 0:02:09.8]} 25. Qe4 {[%clk
0:01:05.5]} 25... g3 {[%clk 0:02:06.3]} 26. f4 {[%clk 0:00:43.1]} 26... Rdf8
{[%clk 0:02:04.3]} 27. e3 {[%clk 0:00:42.1]} 27... gxf4 {[%clk 0:02:00.8]} 28.
Ke1 {[%clk 0:00:31.4]} 28... Nxg2+ {[%clk 0:01:59.6]} 29. Kd2 {[%clk 0:00:30.4]}
29... Nxe3+ {[%clk 0:02:00.1]} 30. Kc3 {[%clk 0:00:30.5]} 30... Nxd1+ {[%clk
0:02:00.4]} 31. Rxd1 {[%clk 0:00:31.4]} 31... Qh3 {[%clk 0:01:57.5]} 32. Rh1
{[%clk 0:00:27.7]} 32... Qf5 {[%clk 0:01:55.6]} 33. Qf3 {[%clk 0:00:26.9]} 33...
Qf6+ {[%clk 0:01:53.3]} 34. Kb3 {[%clk 0:00:26.2]} 34... e5 {[%clk 0:01:53.6]}
35. Nb4 {[%clk 0:00:22]} 35... Qg6 {[%clk 0:01:53.3]} 36. Nd5 {[%clk 0:00:15.6]}
36... e4 {[%clk 0:01:53.6]} 37. Qc3 {[%clk 0:00:12.4]} 37... g2 {[%clk
0:01:53.3]} 38. Rg1 {[%clk 0:00:10.5]} 38... f3 {[%clk 0:01:53.9]} 39. Ne3
{[%clk 0:00:10.1]} 39... f2 {[%clk 0:01:53.3]} 40. Rxg2 {[%clk 0:00:10.2]} 40...
Qxg2 {[%clk 0:01:53.6]} 41. Nxg2 {[%clk 0:00:11.1]} 41... Rf3 {[%clk 0:01:53.4]}
42. Ne3 {[%clk 0:00:10.6]} 42... Rxe3 {[%clk 0:01:54]} 43. Qxe3 {[%clk
0:00:10.5]} 43... Rf3 {[%clk 0:01:54.8]} 44. Qxf3 {[%clk 0:00:10.2]} 44... exf3
{[%clk 0:01:55.7]} 45. Kb4 {[%clk 0:00:10.3]} 45... f1=Q {[%clk 0:01:55.9]} 0-1

[Event "Early-Titled-Tuesday-Blitz-September-26-2023"]
[Site "Chess.com"]
[Date "2023.09.26"]
[Round "1"]
[White "goodluck06"]
[Black "Qvalda"]
[Result "1-0"]
[WhiteElo "2664"]
[BlackElo "2366"]
[TimeControl "180+1"]
[EndTime "8:05:49 PDT"]
[Termination "goodluck06 won on time"]

1. d4 {[%clk 0:02:57.9]} 1... e6 {[%clk 0:02:59.4]} 2. Nf3 {[%clk 0:02:57.5]}
2... Nf6 {[%clk 0:02:59.2]} 3. e3 {[%clk 0:02:58]} 3... b6 {[%clk 0:02:59.1]} 4.
b3 {[%clk 0:02:56.9]} 4... Bb7 {[%clk 0:02:59.3]} 5. Bb2 {[%clk 0:02:57.6]} 5...
d5 {[%clk 0:02:54.7]} 6. Nbd2 {[%clk 0:02:57.2]} 6... Bd6 {[%clk 0:02:52.3]} 7.
Ne5 {[%clk 0:02:57.5]} 7... O-O {[%clk 0:02:45.8]} 8. Bd3 {[%clk 0:02:57.1]}
8... Nbd7 {[%clk 0:02:38.4]} 9. f4 {[%clk 0:02:45.1]} 9... Ne4 {[%clk
0:02:36.5]} 10. Nxe4 {[%clk 0:02:34.7]} 10... dxe4 {[%clk 0:02:37.4]} 11. Bb5
{[%clk 0:02:35.1]} 11... Nxe5 {[%clk 0:02:13.4]} 12. fxe5 {[%clk 0:02:34.8]}
12... Bb4+ {[%clk 0:01:54.8]} 13. c3 {[%clk 0:02:30.4]} 13... Be7 {[%clk
0:01:55.2]} 14. Qg4 {[%clk 0:02:28.4]} 14... a6 {[%clk 0:01:28.2]} 15. Be2
{[%clk 0:02:24.5]} 15... c5 {[%clk 0:01:28.5]} 16. O-O {[%clk 0:02:18.1]} 16...
b5 {[%clk 0:01:19.2]} 17. Rad1 {[%clk 0:02:06.4]} 17... Qa5 {[%clk 0:01:14.2]}
18. a3 {[%clk 0:02:03.1]} 18... cxd4 {[%clk 0:01:02.3]} 19. exd4 {[%clk
0:02:01.9]} 19... Bd5 {[%clk 0:00:58.4]} 20. c4 {[%clk 0:01:47.9]} 20... bxc4
{[%clk 0:00:59.3]} 21. bxc4 {[%clk 0:01:48.4]} 21... Bc6 {[%clk 0:00:53.7]} 22.
Bc1 {[%clk 0:01:47.7]} 22... Rad8 {[%clk 0:00:47.5]} 23. Bh6 {[%clk 0:01:44.5]}
23... g6 {[%clk 0:00:47.3]} 24. Bxf8 {[%clk 0:01:42.3]} 24... Bxf8 {[%clk
0:00:48.2]} 25. Qf4 {[%clk 0:01:38.6]} 25... Be8 {[%clk 0:00:37.6]} 26. Kh1
{[%clk 0:01:35.1]} 26... Qxa3 {[%clk 0:00:35.3]} 27. d5 {[%clk 0:01:34.9]} 27...
Qb2 {[%clk 0:00:25.8]} 28. dxe6 {[%clk 0:01:30.9]} 28... Rxd1 {[%clk 0:00:07.2]}
29. exf7+ {[%clk 0:01:30.9]} 29... Kh8 {[%clk 0:00:05.9]} 30. Qf6+ {[%clk
0:01:30.5]} 1-0

[Event "Early-Titled-Tuesday-Blitz-September-26-2023"]
[Site "Chess.com"]
[Date "2023.09.26"]
[Round "1"]
[White "DonJuanEGenaro"]
[Black "ErikRonka"]
[Result "1-0"]
[WhiteElo "1859"]
[BlackElo "2514"]
[TimeControl "180+1"]
[EndTime "8:05:51 PDT"]
[Termination "DonJuanEGenaro won by resignation"]

1. d4 {[%clk 0:02:58.4]} 1... d5 {[%clk 0:03:00.2]} 2. Nf3 {[%clk 0:02:58.1]}
2... Nf6 {[%clk 0:02:59.8]} 3. c4 {[%clk 0:02:58.1]} 3... c6 {[%clk 0:03:00.1]}
4. cxd5 {[%clk 0:02:58.2]} 4... cxd5 {[%clk 0:03:01]} 5. Nc3 {[%clk 0:02:57.9]}
5... a6 {[%clk 0:03:01.6]} 6. a3 {[%clk 0:02:55.1]} 6... Nc6 {[%clk 0:02:58.4]}
7. Bf4 {[%clk 0:02:51.8]} 7... Bg4 {[%clk 0:02:53.8]} 8. Ne5 {[%clk 0:02:50]}
8... Bd7 {[%clk 0:02:53.2]} 9. e3 {[%clk 0:02:46.4]} 9... Rc8 {[%clk 0:02:53.1]}
10. Be2 {[%clk 0:02:35.8]} 10... e6 {[%clk 0:02:51.3]} 11. O-O {[%clk
0:02:34.6]} 11... Be7 {[%clk 0:02:51]} 12. Rc1 {[%clk 0:02:33.1]} 12... O-O
{[%clk 0:02:50.5]} 13. b4 {[%clk 0:02:32.1]} 13... Ne8 {[%clk 0:02:42.4]} 14.
Qb3 {[%clk 0:02:24]} 14... Bd6 {[%clk 0:02:23.3]} 15. Nxd7 {[%clk 0:02:17]}
15... Qxd7 {[%clk 0:02:22.4]} 16. Bxd6 {[%clk 0:02:01.8]} 16... Nxd6 {[%clk
0:02:23.3]} 17. Na4 {[%clk 0:01:59.3]} 17... Qe7 {[%clk 0:01:52.6]} 18. Bf3
{[%clk 0:01:52.1]} 18... Nc4 {[%clk 0:01:48]} 19. Rfd1 {[%clk 0:01:50.5]} 19...
b5 {[%clk 0:01:43.3]} 20. Nc5 {[%clk 0:01:49.5]} 20... Ra8 {[%clk 0:01:43.6]}
21. e4 {[%clk 0:01:45.7]} 21... Qg5 {[%clk 0:01:27.3]} 22. exd5 {[%clk
0:01:43.2]} 22... exd5 {[%clk 0:01:27.3]} 23. h4 {[%clk 0:01:27.8]} 23... Qf5
{[%clk 0:00:51.5]} 24. a4 {[%clk 0:01:19.8]} 24... bxa4 {[%clk 0:00:46.3]} 25.
Qxa4 {[%clk 0:01:18.6]} 25... Rac8 {[%clk 0:00:38]} 26. Rxc4 {[%clk 0:01:16.4]}
26... dxc4 {[%clk 0:00:27.9]} 27. Bxc6 {[%clk 0:01:15.7]} 27... Rfd8 {[%clk
0:00:24.3]} 28. Bd7 {[%clk 0:01:08.2]} 1-0

[Event "Early-Titled-Tuesday-Blitz-September-26-2023"]
[Site "Chess.com"]
[Date "2023.09.26"]
[Round "1"]
[White "HanSchut"]
[Black "djano"]
[Result "0-1"]
[WhiteElo "2336"]
[BlackElo "2636"]
[TimeControl "180+1"]
[EndTime "8:05:52 PDT"]
[Termination "djano won on time"]

1. e4 {[%clk 0:03:00]} 1... c5 {[%clk 0:02:59.4]} 2. Nf3 {[%clk 0:03:00.6]} 2...
Nc6 {[%clk 0:02:58.6]} 3. d4 {[%clk 0:03:01.3]} 3... cxd4 {[%clk 0:02:59.5]} 4.
Nxd4 {[%clk 0:03:02.2]} 4... g6 {[%clk 0:02:59.6]} 5. c4 {[%clk 0:03:02.6]} 5...
e5 {[%clk 0:02:59.8]} 6. Nb5 {[%clk 0:03:01.6]} 6... d6 {[%clk 0:03:00.2]} 7.
Be3 {[%clk 0:02:47.7]} 7... Nf6 {[%clk 0:02:57.5]} 8. N1c3 {[%clk 0:02:41.6]}
8... a6 {[%clk 0:02:56.9]} 9. Na3 {[%clk 0:02:41.7]} 9... Bg7 {[%clk 0:02:55.5]}
10. f3 {[%clk 0:02:38.7]} 10... O-O {[%clk 0:02:54.1]} 11. Qd2 {[%clk
0:02:39.2]} 11... Be6 {[%clk 0:02:50.8]} 12. Rd1 {[%clk 0:02:36.9]} 12... Nd4
{[%clk 0:02:45.6]} 13. Nc2 {[%clk 0:02:33.6]} 13... Nxc2+ {[%clk 0:02:40.6]} 14.
Qxc2 {[%clk 0:02:33.6]} 14... Rc8 {[%clk 0:02:36.6]} 15. Qd3 {[%clk 0:02:33.8]}
15... Qa5 {[%clk 0:02:28.7]} 16. b3 {[%clk 0:02:24.7]} 16... b5 {[%clk
0:02:27.6]} 17. Bd2 {[%clk 0:02:23.1]} 17... bxc4 {[%clk 0:02:26]} 18. bxc4
{[%clk 0:02:16]} 18... Bxc4 {[%clk 0:02:26.1]} 19. Nd5 {[%clk 0:01:54.3]} 19...
Qxa2 {[%clk 0:01:58.7]} 20. Ne7+ {[%clk 0:01:42.7]} 20... Kh8 {[%clk 0:01:59]}
21. Qb1 {[%clk 0:01:43.6]} 21... Qxb1 {[%clk 0:01:40.7]} 22. Rxb1 {[%clk
0:01:44.5]} 22... Rb8 {[%clk 0:01:40.6]} 23. Rc1 {[%clk 0:01:29.5]} 23... Bxf1
{[%clk 0:01:40.6]} 24. Rxf1 {[%clk 0:01:23.8]} 24... Rfe8 {[%clk 0:01:35.7]} 25.
Nc6 {[%clk 0:01:20.6]} 25... Rb2 {[%clk 0:01:26.4]} 26. Rf2 {[%clk 0:01:04.2]}
26... d5 {[%clk 0:01:24.9]} 0-1

[Event "Early-Titled-Tuesday-Blitz-September-26-2023"]
[Site "Chess.com"]
[Date "2023.09.26"]
[Round "1"]
[White "imdvb6307"]
[Black "JaloliddinIlkhomi"]
[Result "0-1"]
[WhiteElo "2457"]
[BlackElo "2757"]
[TimeControl "180+1"]
[EndTime "8:05:59 PDT"]
[Termination "JaloliddinIlkhomi won on time"]

1. d4 {[%clk 0:03:00.9]} 1... Nf6 {[%clk 0:02:56.5]} 2. Nf3 {[%clk 0:03:00.4]}
2... e6 {[%clk 0:02:56.5]} 3. Bg5 {[%clk 0:03:00.1]} 3... Be7 {[%clk 0:02:56.2]}
4. Nbd2 {[%clk 0:02:57.6]} 4... b6 {[%clk 0:02:56]} 5. e4 {[%clk 0:02:56.7]}
5... Bb7 {[%clk 0:02:56]} 6. Bd3 {[%clk 0:02:56.6]} 6... d5 {[%clk 0:02:54.3]}
7. e5 {[%clk 0:02:35.2]} 7... Ne4 {[%clk 0:02:53.1]} 8. Bxe7 {[%clk 0:02:30.8]}
8... Qxe7 {[%clk 0:02:53.7]} 9. Qe2 {[%clk 0:02:29.2]} 9... Nxd2 {[%clk
0:02:52.9]} 10. Qxd2 {[%clk 0:02:24.7]} 10... Ba6 {[%clk 0:02:40.7]} 11. c3
{[%clk 0:01:29.1]} 11... c5 {[%clk 0:02:28.2]} 12. h4 {[%clk 0:01:12]} 12...
Bxd3 {[%clk 0:02:17.1]} 13. Qxd3 {[%clk 0:01:11.9]} 13... Nc6 {[%clk 0:02:17.1]}
14. O-O {[%clk 0:00:47.6]} 14... O-O {[%clk 0:02:14]} 15. Ng5 {[%clk 0:00:21.2]}
15... f5 {[%clk 0:02:06.6]} 16. g3 {[%clk 0:00:10.5]} 16... Rac8 {[%clk
0:02:01.9]} 17. a3 {[%clk 0:00:09.9]} 17... cxd4 {[%clk 0:02:01.8]} 18. cxd4
{[%clk 0:00:09.8]} 18... h6 {[%clk 0:01:59.7]} 19. Nh3 {[%clk 0:00:09.4]} 19...
Qf7 {[%clk 0:01:54]} 20. b4 {[%clk 0:00:06.7]} 20... Ne7 {[%clk 0:01:53.1]} 21.
Rac1 {[%clk 0:00:05.7]} 21... Ng6 {[%clk 0:01:51.7]} 22. h5 {[%clk 0:00:05.2]}
22... Ne7 {[%clk 0:01:50.9]} 23. Nf4 {[%clk 0:00:05.4]} 23... g5 {[%clk
0:01:48.2]} 24. hxg6 {[%clk 0:00:04.8]} 24... Nxg6 {[%clk 0:01:48.9]} 25. Qe3
{[%clk 0:00:05]} 25... Nxf4 {[%clk 0:01:48.6]} 26. Qxf4 {[%clk 0:00:05.3]} 26...
Qg6 {[%clk 0:01:49.2]} 27. Kg2 {[%clk 0:00:05.5]} 27... Qg5 {[%clk 0:01:47.8]}
28. Kf3 {[%clk 0:00:03.3]} 28... Kf7 {[%clk 0:01:42.9]} 29. Rh1 {[%clk
0:00:03.1]} 29... Qxf4+ {[%clk 0:01:41.2]} 30. Kxf4 {[%clk 0:00:03.1]} 30... Kg6
{[%clk 0:01:41.8]} 31. Ke3 {[%clk 0:00:01.3]} 31... Rc4 {[%clk 0:01:40.9]} 32.
f4 {[%clk 0:00:01.4]} 32... Rfc8 {[%clk 0:01:40.6]} 33. Rxc4 {[%clk 0:00:01.9]}
33... Rxc4 {[%clk 0:01:41.2]} 34. Ra1 {[%clk 0:00:01.1]} 34... b5 {[%clk
0:01:37.8]} 35. Kf3 {[%clk 0:00:01.3]} 35... Rxd4 {[%clk 0:01:34.9]} 0-1

[Event "Early-Titled-Tuesday-Blitz-September-26-2023"]
[Site "Chess.com"]
[Date "2023.09.26"]
[Round "1"]
[White "stasOR4ik"]
[Black "Witik"]
[Result "0-1"]
[WhiteElo "2445"]
[BlackElo "2745"]
[TimeControl "180+1"]
[EndTime "8:06:07 PDT"]
[Termination "Witik won by resignation"]

1. e4 {[%clk 0:03:00.9]} 1... c6 {[%clk 0:02:59]} 2. c4 {[%clk 0:03:01]} 2... e5
{[%clk 0:02:58.2]} 3. Nc3 {[%clk 0:03:00.9]} 3... d6 {[%clk 0:02:57.4]} 4. g3
{[%clk 0:03:01]} 4... f5 {[%clk 0:02:52.7]} 5. exf5 {[%clk 0:02:45.1]} 5... Bxf5
{[%clk 0:02:51]} 6. d4 {[%clk 0:02:45.6]} 6... Nd7 {[%clk 0:02:46]} 7. Nf3
{[%clk 0:02:39.1]} 7... Ngf6 {[%clk 0:02:40.6]} 8. dxe5 {[%clk 0:02:28.7]} 8...
dxe5 {[%clk 0:02:40.6]} 9. Bg2 {[%clk 0:02:28.9]} 9... Bb4 {[%clk 0:02:41.3]}
10. O-O {[%clk 0:02:28.4]} 10... O-O {[%clk 0:02:31.7]} 11. Qb3 {[%clk
0:01:54.3]} 11... a5 {[%clk 0:02:29.3]} 12. a3 {[%clk 0:01:54.4]} 12... Nc5
{[%clk 0:02:26.2]} 13. Qd1 {[%clk 0:01:25.8]} 13... Bxc3 {[%clk 0:02:24.4]} 14.
bxc3 {[%clk 0:01:26.7]} 14... Bd3 {[%clk 0:01:53.7]} 15. Re1 {[%clk 0:01:15.9]}
15... e4 {[%clk 0:01:52.3]} 16. Ne5 {[%clk 0:01:05.8]} 16... a4 {[%clk
0:01:41.8]} 17. Be3 {[%clk 0:01:01.5]} 17... Nb3 {[%clk 0:01:41.2]} 18. Ra2
{[%clk 0:01:01.5]} 18... Re8 {[%clk 0:01:22.5]} 19. Nxd3 {[%clk 0:00:57.6]}
19... exd3 {[%clk 0:01:19.8]} 20. Bf1 {[%clk 0:00:53.8]} 20... d2 {[%clk
0:01:14]} 21. Bxd2 {[%clk 0:00:45.8]} 21... Ne4 {[%clk 0:01:11.3]} 22. Bf4
{[%clk 0:00:15.1]} 22... Qxd1 {[%clk 0:01:08.4]} 23. Rxd1 {[%clk 0:00:14.2]}
23... Nxc3 {[%clk 0:01:09]} 24. Rad2 {[%clk 0:00:12.4]} 24... Nxd1 {[%clk
0:00:58.9]} 25. Rxd1 {[%clk 0:00:13.3]} 25... Rad8 {[%clk 0:00:59.1]} 26. Bd3
{[%clk 0:00:13]} 26... Nc5 {[%clk 0:00:49.9]} 0-1

[Event "Early-Titled-Tuesday-Blitz-September-26-2023"]
[Site "Chess.com"]
[Date "2023.09.26"]
[Round "1"]
[White "atigerman"]
[Black "ViktoriyaTarasova"]
[Result "1-0"]
[WhiteElo "2700"]
[BlackElo "2403"]
[TimeControl "180+1"]
[EndTime "8:06:07 PDT"]
[Termination "atigerman won by resignation"]

1. e4 {[%clk 0:02:59.5]} 1... e5 {[%clk 0:02:59.8]} 2. Nf3 {[%clk 0:02:59.6]}
2... Nc6 {[%clk 0:02:59.9]} 3. Nc3 {[%clk 0:02:59.9]} 3... Nf6 {[%clk
0:02:59.2]} 4. Bb5 {[%clk 0:03:00.2]} 4... Nd4 {[%clk 0:02:46]} 5. Nxd4 {[%clk
0:02:59.6]} 5... exd4 {[%clk 0:02:46.4]} 6. e5 {[%clk 0:03:00.2]} 6... dxc3
{[%clk 0:02:46.6]} 7. exf6 {[%clk 0:03:00.8]} 7... Qxf6 {[%clk 0:02:36.7]} 8.
dxc3 {[%clk 0:03:00]} 8... Be7 {[%clk 0:02:35.8]} 9. O-O {[%clk 0:02:58.9]} 9...
O-O {[%clk 0:02:36]} 10. Re1 {[%clk 0:02:52.9]} 10... c6 {[%clk 0:02:32.9]} 11.
Bd3 {[%clk 0:02:52.6]} 11... d5 {[%clk 0:02:33]} 12. Qh5 {[%clk 0:02:51.7]}
12... g6 {[%clk 0:02:23.4]} 13. Qh6 {[%clk 0:02:51.8]} 13... Bc5 {[%clk
0:02:15.7]} 14. Bf4 {[%clk 0:02:50.1]} 14... Qg7 {[%clk 0:01:36.4]} 15. Qh4
{[%clk 0:02:46.7]} 15... h5 {[%clk 0:01:14.9]} 16. b4 {[%clk 0:02:41.5]} 16...
Bb6 {[%clk 0:01:10.8]} 17. Bd6 {[%clk 0:02:37.2]} 17... Rd8 {[%clk 0:01:06.8]}
18. Be7 {[%clk 0:00:57.5]} 18... Re8 {[%clk 0:01:03.4]} 19. Bf6 {[%clk
0:00:56.7]} 19... Qf8 {[%clk 0:01:02.8]} 20. Qg5 {[%clk 0:00:54.3]} 20... Re6
{[%clk 0:00:05.4]} 21. Rxe6 {[%clk 0:00:49.7]} 21... Bxe6 {[%clk 0:00:05.5]} 22.
Bxg6 {[%clk 0:00:50.2]} 1-0

[Event "Early-Titled-Tuesday-Blitz-September-26-2023"]
[Site "Chess.com"]
[Date "2023.09.26"]
[Round "1"]
[White "Antik5"]
[Black "profedechess93"]
[Result "0-1"]
[WhiteElo "2375"]
[BlackElo "2675"]
[TimeControl "180+1"]
[EndTime "8:06:10 PDT"]
[Termination "profedechess93 won on time"]

1. c4 {[%clk 0:02:55.2]} 1... e5 {[%clk 0:02:59.5]} 2. Nc3 {[%clk 0:02:54.4]}
2... Bb4 {[%clk 0:03:00.1]} 3. Nd5 {[%clk 0:02:54.3]} 3... a5 {[%clk 0:02:59.5]}
4. Nf3 {[%clk 0:02:44.2]} 4... Nc6 {[%clk 0:02:54.9]} 5. g3 {[%clk 0:02:37]}
5... e4 {[%clk 0:02:52.3]} 6. Nh4 {[%clk 0:02:36]} 6... d6 {[%clk 0:02:48.9]} 7.
Ng2 {[%clk 0:02:31.7]} 7... Nf6 {[%clk 0:02:42.8]} 8. Nge3 {[%clk 0:02:21.2]}
8... Bc5 {[%clk 0:02:36.1]} 9. Bg2 {[%clk 0:02:18.5]} 9... h5 {[%clk 0:02:36.1]}
10. Nxf6+ {[%clk 0:01:49.7]} 10... Qxf6 {[%clk 0:02:37]} 11. Bxe4 {[%clk
0:01:45.8]} 11... h4 {[%clk 0:02:35.8]} 12. d3 {[%clk 0:01:25]} 12... Bd7 {[%clk
0:02:30.5]} 13. Bd2 {[%clk 0:01:08.2]} 13... hxg3 {[%clk 0:02:29.1]} 14. hxg3
{[%clk 0:01:07.9]} 14... Rxh1+ {[%clk 0:02:28.8]} 15. Bxh1 {[%clk 0:01:08.8]}
15... Qh6 {[%clk 0:02:25.6]} 16. Be4 {[%clk 0:00:57.1]} 16... Qh2 {[%clk
0:02:24.1]} 17. Bc3 {[%clk 0:00:17.5]} 17... Qg1+ {[%clk 0:02:01.6]} 18. Kd2
{[%clk 0:00:18]} 18... Qxf2 {[%clk 0:02:02]} 19. Nd5 {[%clk 0:00:18.2]} 19...
O-O-O {[%clk 0:02:01.8]} 20. Qf1 {[%clk 0:00:11.6]} 20... Qxg3 {[%clk
0:02:00.6]} 21. Qxf7 {[%clk 0:00:11.2]} 21... Bb4 {[%clk 0:01:26]} 22. Bxb4
{[%clk 0:00:06.2]} 22... axb4 {[%clk 0:01:23.8]} 23. Ne7+ {[%clk 0:00:03.6]}
23... Nxe7 {[%clk 0:01:20.5]} 24. Qxe7 {[%clk 0:00:04.5]} 24... Qf4+ {[%clk
0:00:59.9]} 25. Kc2 {[%clk 0:00:04.6]} 25... Qe3 {[%clk 0:01:00.1]} 26. Bf3
{[%clk 0:00:03.8]} 26... Qxe7 {[%clk 0:00:55.9]} 0-1